[Event "Titled Tuesday Blitz July 18 Early 2023"]
[White "Al-Tarboush, Ward"]
[Black "Nugumanov, Bakhtiyar"]
[WhiteFideId "7601450"]
[BlackFideId "13701797"]
[WhiteElo "2589"]
[BlackElo "2263"]
[Result "1-0"]
[Round "1"]
[TimeControl "180+2"]
[Date "2023.07.18"]
[WhiteClock "0:01:59"]
[BlackClock "0:00:00"]
[Board "164"]

1. e4 {[%clk 0:02:59]}  e6 {[%clk 0:02:59]} 2. d4 {[%clk 0:02:59]}  d5 {[%clk 0:03:00]} 3. exd5 {[%clk 0:03:00]}  exd5 {[%clk 0:03:00]} 4. Bd3 {[%clk 0:03:00]}  Nc6 {[%clk 0:03:00]} 5. Nf3 {[%clk 0:02:59]}  Bd6 {[%clk 0:03:00]} 6. O-O {[%clk 0:02:58]}  Nge7 {[%clk 0:03:01]} 7. c3 {[%clk 0:02:56]}  O-O {[%clk 0:03:01]} 8. Bg5 {[%clk 0:02:52]}  f6 {[%clk 0:03:01]} 9. Bh4 {[%clk 0:02:52]}  Bf5 {[%clk 0:03:01]} 10. Re1 {[%clk 0:02:51]}  Qd7 {[%clk 0:03:00]} 11. Bg3 {[%clk 0:02:50]}  Bxd3 {[%clk 0:02:57]} 12. Qxd3 {[%clk 0:02:50]}  Nf5 {[%clk 0:02:58]} 13. Nbd2 {[%clk 0:02:47]}  Rae8 {[%clk 0:02:57]} 14. Nf1 {[%clk 0:02:40]}  Nd8 {[%clk 0:02:47]} 15. Rxe8 {[%clk 0:02:34]}  Rxe8 {[%clk 0:02:47]} 16. Re1 {[%clk 0:02:35]}  Rxe1 {[%clk 0:02:32]} 17. Nxe1 {[%clk 0:02:36]}  Bxg3 {[%clk 0:02:29]} 18. hxg3 {[%clk 0:02:35]}  Qe6 {[%clk 0:02:20]} 19. Nc2 {[%clk 0:02:35]}  c6 {[%clk 0:02:19]} 20. g4 {[%clk 0:02:32]}  Nd6 {[%clk 0:02:19]} 21. Nce3 {[%clk 0:02:32]}  N8f7 {[%clk 0:02:18]} 22. Ng3 {[%clk 0:02:30]}  g6 {[%clk 0:02:16]} 23. f3 {[%clk 0:02:30]}  Kg7 {[%clk 0:02:12]} 24. Kf2 {[%clk 0:02:30]}  Ng5 {[%clk 0:02:05]} 25. b3 {[%clk 0:02:28]}  b5 {[%clk 0:01:37]} 26. Nc2 {[%clk 0:02:28]}  a5 {[%clk 0:01:33]} 27. Qe3 {[%clk 0:02:25]}  Kf7 {[%clk 0:01:28]} 28. Ne1 {[%clk 0:02:25]}  a4 {[%clk 0:01:07]} 29. Nd3 {[%clk 0:02:24]}  axb3 {[%clk 0:01:02]} 30. axb3 {[%clk 0:02:23]}  Qxe3+ {[%clk 0:01:02]} 31. Kxe3 {[%clk 0:02:24]}  Ne6 {[%clk 0:01:02]} 32. Nb4 {[%clk 0:02:23]}  Nd8 {[%clk 0:00:59]} 33. Ne2 {[%clk 0:02:23]}  g5 {[%clk 0:00:51]} 34. Nc1 {[%clk 0:02:23]}  f5 {[%clk 0:00:39]} 35. gxf5 {[%clk 0:02:20]}  Nxf5+ {[%clk 0:00:40]} 36. Kf2 {[%clk 0:02:20]}  Ke6 {[%clk 0:00:33]} 37. Ncd3 {[%clk 0:02:20]}  Kd6 {[%clk 0:00:30]} 38. g4 {[%clk 0:02:20]}  Nh4 {[%clk 0:00:29]} 39. Ne5 {[%clk 0:02:17]}  Ng6 {[%clk 0:00:28]} 40. Nxg6 {[%clk 0:02:17]}  hxg6 {[%clk 0:00:29]} 41. Nd3 {[%clk 0:02:17]}  Nf7 {[%clk 0:00:25]} 42. Ke3 {[%clk 0:02:17]}  Ke6 {[%clk 0:00:21]} 43. Nf2 {[%clk 0:02:09]}  Nd6 {[%clk 0:00:20]} 44. Nh3 {[%clk 0:02:08]}  Nf7 {[%clk 0:00:20]} 45. Kd3 {[%clk 0:02:06]}  Kf6 {[%clk 0:00:20]} 46. c4 {[%clk 0:02:06]}  bxc4+ {[%clk 0:00:16]} 47. bxc4 {[%clk 0:02:07]}  Ke6 {[%clk 0:00:17]} 48. c5 {[%clk 0:02:06]}  Kd7 {[%clk 0:00:13]} 49. Kc3 {[%clk 0:02:06]}  Ke6 {[%clk 0:00:11]} 50. Nf2 {[%clk 0:02:04]}  Nh6 {[%clk 0:00:03]} 51. Nd3 {[%clk 0:02:02]}  Nf7 {[%clk 0:00:03]} 52. Kb4 {[%clk 0:02:00]}  Kd7 {[%clk 0:00:02]} 53. Ka5 {[%clk 0:02:00]}  Kc7 {[%clk 0:00:03]} 54. Ka6 {[%clk 0:02:00]}  Kd7 {[%clk 0:00:00]} 55. Kb6 {[%clk 0:01:59]} 1-0


[Site "https://www.chess.com"]

[Event "Titled Tuesday Blitz July 18 Early 2023"]
[White "Peiris, T G M"]
[Black "Vlassov, Nikolai"]
[WhiteFideId "9901310"]
[BlackFideId "4103360"]
[WhiteElo "2254"]
[BlackElo "2588"]
[Result "0-1"]
[Round "1"]
[TimeControl "180+2"]
[Date "2023.07.18"]
[WhiteClock "0:00:36"]
[BlackClock "0:00:37"]
[Board "167"]

1. e4 {[%clk 0:03:00]}  c5 {[%clk 0:02:58]} 2. c3 {[%clk 0:03:00]}  Nf6 {[%clk 0:02:57]} 3. e5 {[%clk 0:03:00]}  Nd5 {[%clk 0:02:57]} 4. d4 {[%clk 0:03:01]}  cxd4 {[%clk 0:02:57]} 5. Nf3 {[%clk 0:03:02]}  d6 {[%clk 0:02:57]} 6. cxd4 {[%clk 0:03:02]}  Nc6 {[%clk 0:02:56]} 7. Bc4 {[%clk 0:03:02]}  dxe5 {[%clk 0:02:57]} 8. dxe5 {[%clk 0:03:02]}  Ndb4 {[%clk 0:02:56]} 9. Qb3 {[%clk 0:02:54]}  e6 {[%clk 0:02:56]} 10. O-O {[%clk 0:02:47]}  Na5 {[%clk 0:02:55]} 11. Qa4+ {[%clk 0:02:47]}  Bd7 {[%clk 0:02:55]} 12. Bb5 {[%clk 0:02:48]}  Bxb5 {[%clk 0:02:55]} 13. Qxb5+ {[%clk 0:02:48]}  Nac6 {[%clk 0:02:55]} 14. Nc3 {[%clk 0:02:45]}  a6 {[%clk 0:02:54]} 15. Qe2 {[%clk 0:02:44]}  Qd3 {[%clk 0:02:53]} 16. Qe1 {[%clk 0:02:36]}  Nc2 {[%clk 0:02:51]} 17. Qd2 {[%clk 0:02:32]}  Qxd2 {[%clk 0:02:48]} 18. Bxd2 {[%clk 0:02:33]}  Nxa1 {[%clk 0:02:48]} 19. Rxa1 {[%clk 0:02:33]}  Bb4 {[%clk 0:02:47]} 20. a3 {[%clk 0:02:33]}  Bxc3 {[%clk 0:02:47]} 21. Bxc3 {[%clk 0:02:34]}  O-O-O {[%clk 0:02:46]} 22. Rc1 {[%clk 0:02:32]}  Rd5 {[%clk 0:02:45]} 23. Kf1 {[%clk 0:02:32]}  Rhd8 {[%clk 0:02:44]} 24. Ke2 {[%clk 0:02:32]}  b5 {[%clk 0:02:37]} 25. h3 {[%clk 0:02:31]}  Kb7 {[%clk 0:02:37]} 26. Ke1 {[%clk 0:02:23]}  a5 {[%clk 0:02:34]} 27. b4 {[%clk 0:02:18]}  axb4 {[%clk 0:02:31]} 28. axb4 {[%clk 0:02:18]}  Ra8 {[%clk 0:02:27]} 29. Rc2 {[%clk 0:02:14]}  Ra3 {[%clk 0:02:25]} 30. Bd2 {[%clk 0:02:11]}  Nxe5 {[%clk 0:02:21]} 31. Ng5 {[%clk 0:02:06]}  h6 {[%clk 0:01:40]} 32. Ne4 {[%clk 0:01:55]}  Nd3+ {[%clk 0:01:33]} 33. Kf1 {[%clk 0:01:41]}  f5 {[%clk 0:01:22]} 34. Nc3 {[%clk 0:01:24]}  Ra1+ {[%clk 0:01:21]} 35. Ke2 {[%clk 0:01:23]}  Nxb4 {[%clk 0:01:18]} 36. Rb2 {[%clk 0:01:20]}  Re5+ {[%clk 0:01:17]} 37. Kf3 {[%clk 0:01:20]}  Nd3 {[%clk 0:01:09]} 38. Rxb5+ {[%clk 0:01:20]}  Rxb5 {[%clk 0:01:08]} 39. Nxb5 {[%clk 0:01:21]}  Kc6 {[%clk 0:01:03]} 40. Nd4+ {[%clk 0:01:15]}  Kd5 {[%clk 0:01:02]} 41. Ne2 {[%clk 0:01:15]}  Ne5+ {[%clk 0:01:00]} 42. Kg3 {[%clk 0:01:15]}  Ra3+ {[%clk 0:00:58]} 43. f3 {[%clk 0:01:14]}  g5 {[%clk 0:00:56]} 44. h4 {[%clk 0:01:14]}  f4+ {[%clk 0:00:56]} 45. Kh3 {[%clk 0:01:13]}  g4+ {[%clk 0:00:52]} 46. Kh2 {[%clk 0:01:11]}  gxf3 {[%clk 0:00:52]} 47. Nxf4+ {[%clk 0:01:09]}  Ke4 {[%clk 0:00:52]} 48. Kg1 {[%clk 0:00:48]}  Ra1+ {[%clk 0:00:45]} 49. Kf2 {[%clk 0:00:45]}  Ng4+ {[%clk 0:00:37]} 50. Kg3 {[%clk 0:00:36]}  f2 {[%clk 0:00:37]} 0-1


[Site "https://www.chess.com"]

[Event "Titled Tuesday Blitz July 18 Early 2023"]
[White "Chemin, Justo Reinaldo"]
[Black "The_Sherman_Variation"]
[WhiteFideId "2101580"]
[WhiteElo "2251"]
[BlackElo "2585"]
[Result "0-1"]
[Round "1"]
[TimeControl "180+2"]
[Date "2023.07.18"]
[WhiteClock "0:00:03"]
[BlackClock "0:00:17"]
[Board "169"]

1. d4 {[%clk 0:02:58]}  Nf6 {[%clk 0:02:57]} 2. Nf3 {[%clk 0:02:58]}  b6 {[%clk 0:02:54]} 3. Bf4 {[%clk 0:02:54]}  Bb7 {[%clk 0:02:54]} 4. e3 {[%clk 0:02:54]}  e6 {[%clk 0:02:53]} 5. Nbd2 {[%clk 0:02:54]}  c5 {[%clk 0:02:53]} 6. c3 {[%clk 0:02:54]}  Nc6 {[%clk 0:02:53]} 7. h3 {[%clk 0:02:53]}  Be7 {[%clk 0:02:51]} 8. Bd3 {[%clk 0:02:49]}  h6 {[%clk 0:02:48]} 9. Qe2 {[%clk 0:02:49]}  d5 {[%clk 0:02:46]} 10. dxc5 {[%clk 0:02:45]}  bxc5 {[%clk 0:02:43]} 11. e4 {[%clk 0:02:42]}  Qb6 {[%clk 0:02:33]} 12. Rb1 {[%clk 0:02:35]}  d4 {[%clk 0:02:32]} 13. Nc4 {[%clk 0:02:31]}  Qd8 {[%clk 0:02:32]} 14. cxd4 {[%clk 0:02:25]}  cxd4 {[%clk 0:02:30]} 15. O-O {[%clk 0:02:24]}  O-O {[%clk 0:02:29]} 16. Rbc1 {[%clk 0:02:22]}  Rc8 {[%clk 0:02:25]} 17. Rfd1 {[%clk 0:02:22]}  Nd7 {[%clk 0:02:05]} 18. Nd6 {[%clk 0:02:13]}  Bxd6 {[%clk 0:02:01]} 19. Bxd6 {[%clk 0:02:13]}  Re8 {[%clk 0:02:02]} 20. Bb5 {[%clk 0:02:05]}  e5 {[%clk 0:01:50]} 21. a3 {[%clk 0:01:50]}  Qb6 {[%clk 0:01:45]} 22. b4 {[%clk 0:01:40]}  a6 {[%clk 0:01:38]} 23. Bc4 {[%clk 0:01:34]}  Nd8 {[%clk 0:01:35]} 24. Bc5 {[%clk 0:01:24]}  Nxc5 {[%clk 0:01:35]} 25. bxc5 {[%clk 0:01:24]}  Rxc5 {[%clk 0:01:34]} 26. Rb1 {[%clk 0:01:17]}  Qa7 {[%clk 0:01:16]} 27. Nd2 {[%clk 0:01:05]}  Ne6 {[%clk 0:01:12]} 28. g3 {[%clk 0:01:03]}  Qa8 {[%clk 0:01:07]} 29. f3 {[%clk 0:00:56]}  Kh8 {[%clk 0:01:00]} 30. Nb3 {[%clk 0:00:51]}  Rcc8 {[%clk 0:00:55]} 31. Na5 {[%clk 0:00:50]}  Bc6 {[%clk 0:00:40]} 32. Bxa6 {[%clk 0:00:46]}  Rb8 {[%clk 0:00:37]} 33. Nxc6 {[%clk 0:00:45]}  Qxc6 {[%clk 0:00:38]} 34. Bc4 {[%clk 0:00:42]}  Rec8 {[%clk 0:00:32]} 35. Bd5 {[%clk 0:00:42]}  Qc3 {[%clk 0:00:31]} 36. Rxb8 {[%clk 0:00:39]}  Rxb8 {[%clk 0:00:32]} 37. Bxe6 {[%clk 0:00:34]}  Rb2 {[%clk 0:00:32]} 38. Qd3 {[%clk 0:00:18]}  Qxd3 {[%clk 0:00:32]} 39. Rxd3 {[%clk 0:00:18]}  fxe6 {[%clk 0:00:32]} 40. f4 {[%clk 0:00:16]}  exf4 {[%clk 0:00:20]} 41. gxf4 {[%clk 0:00:15]}  Kh7 {[%clk 0:00:21]} 42. Rxd4 {[%clk 0:00:14]}  Rb3 {[%clk 0:00:21]} 43. Rd6 {[%clk 0:00:14]}  Rxa3 {[%clk 0:00:20]} 44. Rxe6 {[%clk 0:00:15]}  Rxh3 {[%clk 0:00:21]} 45. f5 {[%clk 0:00:15]}  Re3 {[%clk 0:00:21]} 46. Re7 {[%clk 0:00:15]}  Kg8 {[%clk 0:00:21]} 47. e5 {[%clk 0:00:14]}  Kf8 {[%clk 0:00:22]} 48. f6 {[%clk 0:00:15]}  gxf6 {[%clk 0:00:16]} 49. exf6 {[%clk 0:00:15]}  Rf3 {[%clk 0:00:17]} 50. Re6 {[%clk 0:00:12]}  Kf7 {[%clk 0:00:17]} 51. Rc6 {[%clk 0:00:13]}  Kg6 {[%clk 0:00:17]} 52. Kg2 {[%clk 0:00:13]}  Rf5 {[%clk 0:00:18]} 53. Kg3 {[%clk 0:00:13]}  h5 {[%clk 0:00:19]} 54. Kh4 {[%clk 0:00:13]}  Rf4+ {[%clk 0:00:19]} 55. Kg3 {[%clk 0:00:13]}  Rg4+ {[%clk 0:00:19]} 56. Kh3 {[%clk 0:00:13]}  Rf4 {[%clk 0:00:20]} 57. Rb6 {[%clk 0:00:14]}  Rf5 {[%clk 0:00:20]} 58. Rc6 {[%clk 0:00:11]}  Kg5 {[%clk 0:00:20]} 59. Rb6 {[%clk 0:00:08]}  Rf3+ {[%clk 0:00:20]} 60. Kg2 {[%clk 0:00:08]}  Rf4 {[%clk 0:00:20]} 61. Rc6 {[%clk 0:00:07]}  Kg4 {[%clk 0:00:20]} 62. Rd6 {[%clk 0:00:05]}  h4 {[%clk 0:00:21]} 63. Rc6 {[%clk 0:00:02]}  h3+ {[%clk 0:00:20]} 64. Kh2 {[%clk 0:00:03]}  Rf2+ {[%clk 0:00:20]} 65. Kg1 {[%clk 0:00:03]}  Rf3 {[%clk 0:00:21]} 66. f7 {[%clk 0:00:01]}  Rxf7 {[%clk 0:00:16]} 67. Rc4+ {[%clk 0:00:01]}  Kg3 {[%clk 0:00:15]} 68. Rc3+ {[%clk 0:00:01]}  Kh4 {[%clk 0:00:15]} 69. Rc4+ {[%clk 0:00:02]}  Kh5 {[%clk 0:00:16]} 70. Rd4 {[%clk 0:00:02]}  Rf3 {[%clk 0:00:15]} 71. Re4 {[%clk 0:00:03]}  Kg5 {[%clk 0:00:15]} 72. Re5+ {[%clk 0:00:03]}  Kg4 {[%clk 0:00:16]} 73. Re2 {[%clk 0:00:04]}  Kg3 {[%clk 0:00:16]} 74. Re8 {[%clk 0:00:05]}  h2+ {[%clk 0:00:16]} 75. Kh1 {[%clk 0:00:03]}  Rf1# {[%clk 0:00:17]} 0-1


[Site "https://www.chess.com"]

[Event "Titled Tuesday Blitz July 18 Early 2023"]
[White "Arat, Ufuk Sezen"]
[Black "Putri, Regita Desyari"]
[WhiteFideId "6309089"]
[BlackFideId "7109083"]
[WhiteElo "2582"]
[BlackElo "2251"]
[Result "1-0"]
[Round "1"]
[TimeControl "180+2"]
[Date "2023.07.18"]
[WhiteClock "0:01:14"]
[BlackClock "0:00:00"]
[Board "170"]

1. e4 {[%clk 0:03:00]}  e5 {[%clk 0:02:54]} 2. Nf3 {[%clk 0:02:58]}  Nf6 {[%clk 0:02:54]} 3. Nxe5 {[%clk 0:02:58]}  d6 {[%clk 0:02:54]} 4. Nf3 {[%clk 0:02:58]}  Nxe4 {[%clk 0:02:55]} 5. c4 {[%clk 0:02:59]}  Be7 {[%clk 0:02:45]} 6. d4 {[%clk 0:02:59]}  O-O {[%clk 0:02:44]} 7. Nc3 {[%clk 0:02:57]}  Bf5 {[%clk 0:02:15]} 8. Bd3 {[%clk 0:02:54]}  Nxc3 {[%clk 0:02:15]} 9. bxc3 {[%clk 0:02:55]}  Bxd3 {[%clk 0:02:14]} 10. Qxd3 {[%clk 0:02:56]}  Nc6 {[%clk 0:02:12]} 11. O-O {[%clk 0:02:56]}  h6 {[%clk 0:02:11]} 12. Rb1 {[%clk 0:02:52]}  Na5 {[%clk 0:02:08]} 13. Be3 {[%clk 0:02:44]}  b6 {[%clk 0:02:02]} 14. d5 {[%clk 0:02:39]}  Qd7 {[%clk 0:02:00]} 15. Nd4 {[%clk 0:02:34]}  Bf6 {[%clk 0:01:58]} 16. Nf5 {[%clk 0:02:30]}  Rfe8 {[%clk 0:01:55]} 17. Bd4 {[%clk 0:02:21]}  Be5 {[%clk 0:01:48]} 18. f4 {[%clk 0:02:17]}  Bxd4+ {[%clk 0:01:47]} 19. cxd4 {[%clk 0:02:18]}  Kh8 {[%clk 0:01:38]} 20. Rbc1 {[%clk 0:02:04]}  Rad8 {[%clk 0:01:17]} 21. Rf3 {[%clk 0:01:59]}  Rg8 {[%clk 0:01:08]} 22. Rh3 {[%clk 0:01:56]}  Rgf8 {[%clk 0:00:03]} 23. Nxh6 {[%clk 0:01:52]}  g6 {[%clk 0:00:04]} 24. Ng4+ {[%clk 0:01:21]}  Kg7 {[%clk 0:00:03]} 25. Rh7+ {[%clk 0:01:22]}  Kxh7 {[%clk 0:00:01]} 26. Qh3+ {[%clk 0:01:14]}  Kg7 {[%clk 0:00:00]} 27. Qh6+ {[%clk 0:01:14]} 1-0


[Site "https://www.chess.com"]

[Event "Titled Tuesday Blitz July 18 Early 2023"]
[White "Joshi, Pankaj"]
[Black "Leon Oquendo, Jorge"]
[WhiteFideId "5006210"]
[BlackFideId "3514803"]
[WhiteElo "2249"]
[BlackElo "2582"]
[Result "0-1"]
[Round "1"]
[TimeControl "180+2"]
[Date "2023.07.18"]
[WhiteClock "0:00:08"]
[BlackClock "0:00:40"]
[Board "171"]

1. e4 {[%clk 0:02:59]}  c5 {[%clk 0:02:56]} 2. Nc3 {[%clk 0:02:43]}  a6 {[%clk 0:02:48]} 3. g3 {[%clk 0:02:42]}  b5 {[%clk 0:02:46]} 4. Bg2 {[%clk 0:02:43]}  Bb7 {[%clk 0:02:47]} 5. d3 {[%clk 0:02:43]}  g6 {[%clk 0:02:44]} 6. f4 {[%clk 0:02:42]}  Bg7 {[%clk 0:02:44]} 7. Nh3 {[%clk 0:02:42]}  d6 {[%clk 0:02:44]} 8. O-O {[%clk 0:02:41]}  Nd7 {[%clk 0:02:44]} 9. f5 {[%clk 0:02:13]}  Ne5 {[%clk 0:02:35]} 10. Bf4 {[%clk 0:01:57]}  gxf5 {[%clk 0:02:29]} 11. Bxe5 {[%clk 0:01:48]}  Bxe5 {[%clk 0:02:28]} 12. Rxf5 {[%clk 0:01:48]}  e6 {[%clk 0:02:25]} 13. Rf1 {[%clk 0:01:39]}  h5 {[%clk 0:02:24]} 14. Qf3 {[%clk 0:01:30]}  Qe7 {[%clk 0:02:17]} 15. Ne2 {[%clk 0:00:50]}  Bxb2 {[%clk 0:02:05]} 16. Rab1 {[%clk 0:00:50]}  Be5 {[%clk 0:02:06]} 17. c3 {[%clk 0:00:50]}  f5 {[%clk 0:02:01]} 18. Nhf4 {[%clk 0:00:41]}  fxe4 {[%clk 0:01:57]} 19. dxe4 {[%clk 0:00:42]}  Rh6 {[%clk 0:01:36]} 20. Nxh5 {[%clk 0:00:28]}  O-O-O {[%clk 0:01:34]} 21. Nef4 {[%clk 0:00:27]}  Nf6 {[%clk 0:01:33]} 22. Nxf6 {[%clk 0:00:27]}  Rxf6 {[%clk 0:01:33]} 23. a4 {[%clk 0:00:20]}  Bc6 {[%clk 0:01:24]} 24. axb5 {[%clk 0:00:20]}  axb5 {[%clk 0:01:25]} 25. c4 {[%clk 0:00:20]}  b4 {[%clk 0:01:24]} 26. Qg4 {[%clk 0:00:17]}  Rh8 {[%clk 0:01:02]} 27. Ng6 {[%clk 0:00:16]}  Bd4+ {[%clk 0:01:02]} 28. Kh1 {[%clk 0:00:15]}  Qh7 {[%clk 0:01:02]} 29. Nxh8 {[%clk 0:00:14]}  Qxh8 {[%clk 0:01:01]} 30. Rxf6 {[%clk 0:00:13]}  Qxf6 {[%clk 0:00:59]} 31. Rf1 {[%clk 0:00:14]}  Qe5 {[%clk 0:00:53]} 32. Qg8+ {[%clk 0:00:14]}  Kc7 {[%clk 0:00:52]} 33. Rf7+ {[%clk 0:00:15]}  Bd7 {[%clk 0:00:52]} 34. Rf1 {[%clk 0:00:15]}  b3 {[%clk 0:00:48]} 35. Qa8 {[%clk 0:00:14]}  b2 {[%clk 0:00:46]} 36. Qa5+ {[%clk 0:00:14]}  Kb7 {[%clk 0:00:43]} 37. Rf7 {[%clk 0:00:14]}  b1=Q+ {[%clk 0:00:42]} 38. Bf1 {[%clk 0:00:08]}  Qexe4+ {[%clk 0:00:40]} 0-1


[Site "https://www.chess.com"]

[Event "Titled Tuesday Blitz July 18 Early 2023"]
[White "Daniel_Salinas"]
[Black "Pham, Khoi"]
[BlackFideId "1054988"]
[WhiteElo "2242"]
[BlackElo "2579"]
[Result "0-1"]
[Round "1"]
[TimeControl "180+2"]
[Date "2023.07.18"]
[WhiteClock "0:00:00"]
[BlackClock "0:01:35"]
[Board "173"]

1. d4 {[%clk 0:02:59]}  Nf6 {[%clk 0:02:59]} 2. c4 {[%clk 0:02:58]}  g6 {[%clk 0:03:00]} 3. Nf3 {[%clk 0:02:57]}  Bg7 {[%clk 0:03:00]} 4. g3 {[%clk 0:02:57]}  O-O {[%clk 0:03:01]} 5. Bg2 {[%clk 0:02:57]}  d6 {[%clk 0:03:01]} 6. O-O {[%clk 0:02:57]}  c5 {[%clk 0:03:01]} 7. Nc3 {[%clk 0:02:47]}  Nc6 {[%clk 0:02:57]} 8. d5 {[%clk 0:02:45]}  Na5 {[%clk 0:02:57]} 9. Nd2 {[%clk 0:02:44]}  a6 {[%clk 0:02:54]} 10. a4 {[%clk 0:02:39]}  Bd7 {[%clk 0:02:38]} 11. Qc2 {[%clk 0:02:34]}  Rb8 {[%clk 0:02:26]} 12. b3 {[%clk 0:02:24]}  b5 {[%clk 0:02:24]} 13. axb5 {[%clk 0:02:18]}  axb5 {[%clk 0:02:25]} 14. cxb5 {[%clk 0:02:17]}  Bxb5 {[%clk 0:02:21]} 15. Nxb5 {[%clk 0:02:15]}  Rxb5 {[%clk 0:02:22]} 16. Bb2 {[%clk 0:02:12]}  Qb6 {[%clk 0:02:10]} 17. Bc3 {[%clk 0:02:04]}  Nxb3 {[%clk 0:02:07]} 18. Rab1 {[%clk 0:01:43]}  Nxd2 {[%clk 0:02:05]} 19. Rxb5 {[%clk 0:01:39]}  Qxb5 {[%clk 0:02:06]} 20. Qxd2 {[%clk 0:01:38]}  Rb8 {[%clk 0:02:05]} 21. Ra1 {[%clk 0:01:27]}  c4 {[%clk 0:01:58]} 22. e4 {[%clk 0:01:20]}  Ng4 {[%clk 0:01:56]} 23. Bf1 {[%clk 0:01:19]}  Bxc3 {[%clk 0:01:53]} 24. Qxc3 {[%clk 0:01:20]}  Qc5 {[%clk 0:01:52]} 25. Ra2 {[%clk 0:01:02]}  Ne5 {[%clk 0:01:51]} 26. Rc2 {[%clk 0:01:00]}  Rb3 {[%clk 0:01:47]} 27. Qa1 {[%clk 0:00:53]}  c3 {[%clk 0:01:39]} 28. Be2 {[%clk 0:00:47]}  Qb4 {[%clk 0:01:37]} 29. Kg2 {[%clk 0:00:00]}  Rb2 {[%clk 0:01:35]} 0-1


[Site "https://www.chess.com"]

[Event "Titled Tuesday Blitz July 18 Early 2023"]
[White "Souleidis, Georgios"]
[Black "Sarkar, Justin"]
[WhiteFideId "4206827"]
[BlackFideId "2010011"]
[WhiteElo "2578"]
[BlackElo "2241"]
[Result "1-0"]
[Round "1"]
[TimeControl "180+2"]
[Date "2023.07.18"]
[WhiteClock "0:00:26"]
[BlackClock "0:00:00"]
[Board "174"]

1. e4 {[%clk 0:02:56]}  c6 {[%clk 0:02:53]} 2. d4 {[%clk 0:02:55]}  d5 {[%clk 0:02:53]} 3. e5 {[%clk 0:02:56]}  Na6 {[%clk 0:02:53]} 4. c3 {[%clk 0:02:51]}  Nc7 {[%clk 0:02:53]} 5. Bd3 {[%clk 0:02:51]}  g6 {[%clk 0:02:49]} 6. Nf3 {[%clk 0:02:47]}  Nh6 {[%clk 0:02:43]} 7. Nh4 {[%clk 0:02:31]}  Nf5 {[%clk 0:02:17]} 8. Nxf5 {[%clk 0:02:27]}  Bxf5 {[%clk 0:02:16]} 9. Bxf5 {[%clk 0:02:23]}  gxf5 {[%clk 0:02:17]} 10. Qh5 {[%clk 0:02:23]}  e6 {[%clk 0:02:03]} 11. Bg5 {[%clk 0:02:21]}  Be7 {[%clk 0:01:53]} 12. h4 {[%clk 0:02:21]}  Qd7 {[%clk 0:01:39]} 13. Nd2 {[%clk 0:02:20]}  Bxg5 {[%clk 0:01:15]} 14. Qxg5 {[%clk 0:02:16]}  Qe7 {[%clk 0:01:11]} 15. Nf3 {[%clk 0:02:00]}  h6 {[%clk 0:01:02]} 16. Qxe7+ {[%clk 0:01:44]}  Kxe7 {[%clk 0:01:02]} 17. Ke2 {[%clk 0:01:43]}  Rhg8 {[%clk 0:00:57]} 18. g3 {[%clk 0:01:43]}  a5 {[%clk 0:00:49]} 19. b3 {[%clk 0:01:38]}  b6 {[%clk 0:00:42]} 20. c4 {[%clk 0:01:32]}  a4 {[%clk 0:00:30]} 21. Rhc1 {[%clk 0:01:23]}  axb3 {[%clk 0:00:24]} 22. axb3 {[%clk 0:01:23]}  Rxa1 {[%clk 0:00:23]} 23. Rxa1 {[%clk 0:01:24]}  Ra8 {[%clk 0:00:23]} 24. Rxa8 {[%clk 0:01:18]}  Nxa8 {[%clk 0:00:23]} 25. Ke3 {[%clk 0:01:16]}  Nc7 {[%clk 0:00:22]} 26. Ne1 {[%clk 0:01:15]}  b5 {[%clk 0:00:15]} 27. c5 {[%clk 0:01:10]}  Ne8 {[%clk 0:00:11]} 28. Nd3 {[%clk 0:01:09]}  Ng7 {[%clk 0:00:05]} 29. Kd2 {[%clk 0:00:57]}  Kd7 {[%clk 0:00:04]} 30. Kc3 {[%clk 0:00:58]}  Nh5 {[%clk 0:00:03]} 31. Kb4 {[%clk 0:00:55]}  Kc7 {[%clk 0:00:03]} 32. Ka5 {[%clk 0:00:55]}  Kb7 {[%clk 0:00:03]} 33. Kb4 {[%clk 0:00:39]}  Kc7 {[%clk 0:00:03]} 34. Kc3 {[%clk 0:00:39]}  Kd7 {[%clk 0:00:02]} 35. Kd2 {[%clk 0:00:39]}  Kc7 {[%clk 0:00:01]} 36. Ke3 {[%clk 0:00:40]}  Kd7 {[%clk 0:00:01]} 37. Kf3 {[%clk 0:00:41]}  Kc7 {[%clk 0:00:01]} 38. Kg2 {[%clk 0:00:31]}  Kd7 {[%clk 0:00:01]} 39. f3 {[%clk 0:00:31]}  Ke7 {[%clk 0:00:01]} 40. g4 {[%clk 0:00:29]}  fxg4 {[%clk 0:00:01]} 41. fxg4 {[%clk 0:00:30]}  Ng7 {[%clk 0:00:01]} 42. h5 {[%clk 0:00:27]}  Kd7 {[%clk 0:00:01]} 43. Kg3 {[%clk 0:00:27]}  Ke7 {[%clk 0:00:01]} 44. Kf4 {[%clk 0:00:28]}  Kf8 {[%clk 0:00:00]} 45. Nb4 {[%clk 0:00:26]} 1-0


[Site "https://www.chess.com"]